bitfinex/quotes_ETHUSD_20220113
["timestamp","ask_amount","ask_price","bid_price","bid_amount"]
[1642044980489,0.00227369,3331.6,3331.5,2.52859702]
[1642044994329,0.00227369,3331.6,3331.5,1.77835702]
[1642044997987,4.50227369,3331.6,3331.5,1.77835702]
[1642044998383,5.62227369,3331.6,3331.5,1.77835702]
[1642044998583,0.12227369,3331.6,3331.5,1.77835702]
[1642044999029,0.00227369,3331.6,3331.5,1.77835702]
[1642044999834,0.85050917,3331.6,3330.9,1.77835702]
[1642045000234,0.00170527,3331.5,3331.0,0.00113685]
[1642045000433,0.00170527,3331.5,3331.3,0.75037]
[1642045000735,0.00113685,3331.4,3331.3,0.75037]
[1642045001936,0.00113685,3331.4,3331.3,2.52872702]
[1642045002784,0.00113685,3331.4,3331.3,3.79791609]
[1642045003783,0.00113685,3331.4,3331.3,4.09791609]
[1642045003989,0.00113685,3331.4,3331.3,3.79791609]
[1642045004284,0.00113685,3331.4,3331.3,5.25009655]
[1642045007839,0.00113685,3331.4,3331.3,5.55009655]
[1642045008039,0.00113685,3331.4,3331.3,5.25009655]
[1642045009740,0.00113685,3331.4,3331.3,5.55009655]
[1642045012782,0.00113685,3331.4,3331.3,5.25009655]
[1642045013824,0.00113685,3331.4,3331.3,5.55009655]
[1642045014222,0.00113685,3331.4,3331.3,5.25009655]
[1642045014622,0.00113685,3331.4,3331.3,3.79791609]
[1642045016427,0.00113685,3331.4,3331.3,5.33865119]
[1642045017882,0.00113685,3331.4,3331.3,3.79791609]
[1642045020283,0.00113685,3331.4,3331.3,4.09791609]
[1642045025875,0.00113685,3331.4,3331.3,5.6383065]
[1642045026578,0.00113685,3331.4,3331.3,4.09791609]
[1642045027274,0.00113685,3331.4,3331.3,3.79791609]
[1642045027478,0.00113685,3331.4,3331.3,5.33835461]
[1642045028081,0.00113685,3331.4,3331.3,3.79791609]
[1642045029135,0.00113685,3331.4,3331.1,1.54043852]
[1642045029329,0.00113685,3331.4,3330.8,2.26418073]
[1642045029330,4.1,3331.2,3330.8,2.26418073]
[1642045029528,1.426,3331.1,3330.8,2.26418073]
[1642045029730,1.546,3331.1,3330.8,2.26418073]
[1642045029926,1.846,3331.1,3330.8,2.26418073]
[1642045030328,0.546,3331.1,3330.6,4.13401342]
[1642045030530,0.12,3331.1,3330.6,1.11077314]
[1642045030728,0.12170527,3331.3,3330.7,0.00170527]
[1642045031229,0.00113685,3331.2,3330.7,0.00170527]
[1642045031631,4.13177289,3331.5,3330.7,0.00170527]
[1642045031829,3.83177289,3331.5,3330.7,0.00170527]
[1642045032029,1.3022737,3331.4,3330.7,0.00170527]
[1642045032482,0.00170527,3331.3,3330.7,1.27748187]
[1642045032879,0.00113685,3331.2,3330.8,0.00113684]
[1642045033280,0.00170527,3331.3,3330.8,0.00113684]
[1642045033680,0.00113685,3331.2,3330.8,0.00113684]
[1642045034081,0.12,3331.5,3330.8,0.00113684]
[1642045034082,0.0022737,3331.4,3330.8,0.00113684]
[1642045034480,0.00170527,3331.3,3330.8,0.00113684]
[1642045034882,0.00113685,3331.2,3330.8,0.00113684]
[1642045035282,0.00170527,3331.3,3330.8,0.00113684]
[1642045035682,0.00113685,3331.2,3330.8,0.00113684]
[1642045036083,0.00170527,3331.3,3330.8,0.00113684]
[1642045036324,0.95170527,3331.4,3330.8,0.00113684]
[1642045036728,0.95170527,3331.4,3330.8,0.00284211]
[1642045038832,0.3,3331.5,3330.8,0.00284211]
[1642045039032,3.64561542,3331.5,3330.8,0.00284211]
[1642045039632,1.0,3331.4,3330.8,0.00284211]
[1642045039830,1.3,3331.4,3330.8,0.00284211]
[1642045040983,21.66925826,3331.3,3330.8,0.00284211]
[1642045041281,22.61499963,3331.3,3330.6,0.00397896]
[1642045041481,1.0,3331.2,3330.6,0.00397896]
[1642045041677,0.546,3331.1,3330.5,0.00454738]
[1642045041879,0.7507516,3331.0,3330.5,0.00454738]
[1642045042084,0.75075,3330.8,3330.5,0.00454738]
[1642045042280,0.7507,3330.7,3330.5,0.00454738]
[1642045042481,0.546,3330.9,3330.5,0.00454738]
[1642045042684,1.546,3330.9,3330.5,0.00454738]
[1642045042883,0.546,3330.9,3330.4,0.00511581]
[1642045043184,3.86671111,3330.8,3330.4,0.00511581]
[1642045043584,1.0,3330.7,3330.4,0.00511581]
[1642045043834,3.73704711,3330.6,3330.1,0.00682108]
[1642045044235,3.73704711,3330.6,3330.0,0.0073895]
[1642045045240,3.73704711,3330.6,3330.0,1.5078745]
[1642045045438,3.73704711,3330.6,3330.0,1.500485]
[1642045045639,1.3,3330.7,3330.1,0.75755108]
[1642045046040,0.3,3330.7,3330.2,0.00625265]
[1642045046239,5.02316176,3330.8,3330.2,0.00625265]
[1642045046441,1.3,3330.8,3330.1,0.00682108]
[1642045046640,1.3,3330.8,3330.4,0.75067]
[1642045046839,1.3,3330.8,3330.5,0.00389043]
[1642045047040,0.1201,3331.0,3330.5,0.00454738]
[1642045047345,3.7347,3331.7,3330.5,4.20901641]
[1642045047585,4.9133,3331.7,3331.3,1.11857288]
[1642045047785,0.95157318,3331.9,3331.4,0.6753537]
[1642045047786,0.00170527,3331.6,3331.4,0.6753537]
[1642045048285,0.95157318,3331.9,3331.5,1.44406381]
[1642045048684,0.00284212,3331.8,3331.5,1.44406381]
[1642045048884,0.95157318,3331.9,3331.7,2.25076]
[1642045049286,0.12,3332.6,3331.8,2.65]
[1642045049485,2.71539279,3332.7,3331.8,2.65]
[1642045049685,0.00227369,3332.2,3332.0,0.30006]
[1642045049887,1.52259279,3332.7,3332.0,0.30006]
[1642045049888,1.52259279,3332.7,3332.0,1.80031]
[1642045050085,0.13819997,3332.8,3332.1,0.12]
[1642045050285,0.0022737,3332.6,3332.4,1.73657632]
[1642045050684,0.00170527,3332.5,3332.4,1.73657632]
[1642045051336,0.00170527,3332.5,3332.4,3.23672632]
[1642045051534,1.33736944,3332.7,3332.4,3.23672632]
[1642045051737,1.33736944,3332.7,3332.5,1.42036514]
[1642045051935,1.0,3333.2,3332.5,1.42036514]
[1642045052136,1.28715297,3333.3,3332.5,1.42036514]
[1642045052337,0.00341055,3333.1,3332.8,0.5250379]
[1642045052542,0.00341055,3333.1,3332.9,0.75005]
[1642045052840,0.00284212,3333.0,3332.9,0.75005]
[1642045053740,1.7099915,3333.4,3332.9,0.75005]
[1642045053741,1.8899915,3333.4,3332.9,0.75005]
[1642045054139,0.00113685,3333.2,3332.9,0.75005]
[1642045054342,5.28230979,3333.9,3333.7,1.47139632]
[1642045054343,0.12,3333.8,3333.7,1.47139632]
[1642045054540,0.12,3333.8,3333.7,2.22110632]
[1642045054739,0.12,3333.8,3333.7,0.74971]
[1642045054996,0.120117,3333.9,3333.7,0.86961]
[1642045055386,0.070117,3333.9,3333.8,1.37568274]
[1642045055784,0.07409596,3333.9,3333.8,1.37568274]
[1642045056185,0.07409596,3333.9,3333.7,0.86961]
[1642045056387,0.07409596,3333.9,3333.7,0.74971]
[1642045056585,4.35341054,3333.8,3333.3,1.49984]
[1642045056785,4.35341054,3333.8,3333.5,0.74994]
[1642045056985,0.00284212,3333.7,3333.5,0.74994]
[1642045057385,0.00227369,3333.6,3333.5,0.74994]
[1642045063905,0.00227369,3333.6,3333.5,0.86984]
[1642045068542,0.00227369,3333.6,3333.5,0.74994]
[1642045074331,0.95227369,3334.1,3333.5,0.74994]
[1642045074532,1.25227369,3334.1,3333.5,0.74994]
[1642045074735,0.0022737,3334.0,3333.5,0.74994]
[1642045075131,0.00170527,3333.9,3333.5,0.74994]
[1642045075333,0.00170527,3333.9,3333.5,1.1998401]
[1642045075633,0.00113685,3333.8,3333.5,1.1998401]
[1642045078089,2.21047837,3334.3,3333.5,1.1998401]
[1642045078288,2.81047837,3334.3,3333.9,0.74983]
[1642045078491,0.00227369,3334.2,3333.9,0.74983]
[1642045078690,0.00227369,3334.2,3333.9,0.49983]
[1642045078889,0.00170527,3334.1,3333.9,0.49983]
[1642045079291,0.00113685,3334.0,3333.9,0.49983]
[1642045081738,0.00113685,3334.0,3333.7,1.49958]
[1642045082135,0.00113685,3334.0,3333.6,0.00113685]
[1642045082550,0.00113685,3334.0,3333.5,0.00170527]
[1642045083845,1.1693522,3333.7,3333.5,0.00170527]
[1642045084045,1.4693522,3333.7,3333.5,0.00170527]
[1642045085091,0.3,3333.7,3333.5,0.00170527]
[1642045085289,0.3,3333.9,3333.5,0.00170527]
[1642045085492,0.00113685,3334.0,3333.6,0.74987]
[1642045085689,1.00113685,3334.0,3333.6,0.74987]
[1642045085892,0.00113685,3334.0,3333.6,0.74987]
[1642045090335,0.00113685,3334.0,3333.5,0.00170527]
[1642045090535,0.00113685,3334.0,3333.6,0.74988]
[1642045091237,3.64216424,3334.0,3333.6,0.74988]
[1642045091439,0.3,3333.9,3333.6,0.74988]
[1642045091737,1.3,3333.9,3333.6,0.74988]
[1642045092991,0.00113685,3334.0,3333.6,0.74988]
[1642045093291,1.39660598,3333.8,3333.7,1.16488637]
[1642045093493,1.69660598,3333.8,3333.7,1.16488637]
[1642045094093,0.3,3333.8,3333.7,1.16488637]
[1642045094292,1.3,3333.9,3333.7,1.16488637]
[1642045095091,1.39660598,3333.8,3333.5,1.16659164]
[1642045095492,1.39660598,3333.8,3333.6,0.75100685]
[1642045098461,1.39660598,3333.8,3333.6,0.00113685]
[1642045098862,1.39660598,3333.8,3333.5,0.00170527]
[1642045099863,1.39660598,3333.8,3333.6,0.74987]
[1642045100093,2.39660598,3333.8,3333.6,0.74987]
[1642045100492,1.39660598,3333.8,3333.5,0.00170527]
[1642045100691,2.39660598,3333.8,3333.5,0.00170527]
[1642045100893,1.39660598,3333.7,3333.5,0.00170527]
[1642045101092,1.69660598,3333.7,3333.5,0.00170527]
[1642045101897,0.3,3333.7,3333.5,0.00170527]
[1642045102095,1.69660598,3333.8,3333.5,0.00170527]
[1642045102495,1.39660598,3333.6,3333.5,0.00170527]
[1642045102896,1.69660598,3333.6,3333.5,0.00170527]
[1642045103497,0.3,3333.6,3333.5,0.00170527]
[1642045103748,1.69660598,3333.7,3333.5,0.00170527]
[1642045104350,1.39660598,3333.6,3333.5,0.00170527]
[1642045107793,1.39660598,3333.6,3333.5,0.75153527]
[1642045111344,1.39660598,3333.6,3333.5,1.89270806]
[1642045113852,1.39660598,3333.9,3333.5,1.89270806]
[1642045114254,1.39660598,3333.9,3333.6,0.00113685]
[1642045114455,0.00170527,3334.1,3333.7,0.74984]
[1642045114855,0.00113685,3334.0,3333.7,0.74984]
[1642045115090,0.00113685,3334.0,3333.8,1.14117279]
[1642045115893,1.00113685,3334.0,3333.8,1.14117279]
[1642045116690,0.3,3333.9,3333.8,1.14117279]
[1642045116895,0.00113685,3334.0,3333.8,1.14117279]
[1642045117094,0.00113685,3334.0,3333.7,1.14117279]
[1642045117498,0.00113685,3334.0,3333.8,0.74982]
[1642045118496,0.00113685,3334.0,3333.9,1.14117279]
[1642045125503,9.31675267,3334.0,3333.9,1.14117279]
[1642045125704,31.70159839,3334.0,3333.9,7.279e-05]
[1642045126103,28.04165267,3334.0,3333.9,7.279e-05]
[1642045126751,26.57193685,3334.0,3333.9,7.279e-05]
[1642045127154,0.3,3333.9,3333.6,0.00113685]
[1642045127355,17.54,3333.7,3333.6,0.00113685]
[1642045127556,19.6859,3333.7,3333.3,0.00284212]
[1642045127760,0.1199,3333.6,3333.3,0.00284212]
[1642045127957,0.426,3333.5,3333.3,0.00284212]
[1642045128159,0.726,3333.5,3333.3,0.00284212]
[1642045128357,1.026,3333.5,3333.3,0.00284212]
[1642045128958,0.426,3333.5,3333.3,0.00284212]
[1642045129158,1.0,3333.5,3333.3,0.00284212]
[1642045129359,2.00838097,3333.6,3332.8,0.00568423]
[1642045129560,2.30838097,3333.6,3332.9,0.12]
[1642045130007,0.3,3333.6,3333.0,0.00454739]
[1642045130194,1.3,3333.8,3333.0,0.00454739]
[1642045130395,0.6,3333.8,3333.0,0.00454739]
[1642045130593,0.3,3333.8,3333.2,0.74994]
[1642045130798,1.6,3333.9,3333.2,0.74994]
[1642045130997,1.6,3333.9,3333.3,0.00284212]
[1642045131798,1.6,3333.9,3333.0,0.00454739]
[1642045132499,1.6,3333.9,3333.4,0.6999]
[1642045133001,1.6,3333.9,3333.5,0.00170527]
[1642045133602,0.6,3333.9,3333.5,0.00170527]
[1642045133839,0.6,3333.9,3333.6,0.74986]
[1642045135241,0.3,3333.9,3333.6,0.74986]
[1642045135646,0.00113685,3334.0,3333.6,0.74986]
[1642045136643,0.00113685,3334.0,3333.5,0.00170527]
[1642045137143,1.00113685,3334.0,3333.5,0.00170527]
[1642045137509,0.3,3333.9,3333.3,0.00284212]
[1642045137997,0.00113685,3334.0,3333.3,0.00284212]
[1642045138200,20.54951782,3334.0,3333.3,0.00284212]
[1642045138399,3.73764169,3333.9,3333.3,0.00284212]
[1642045138598,1.0,3333.8,3333.3,0.00284212]
[1642045138799,1.6,3333.8,3333.3,0.00284212]
[1642045139000,0.3,3333.8,3333.2,0.00341054]
[1642045139398,2.60838097,3333.9,3333.2,0.00341054]
[1642045139599,1.0,3333.8,3333.3,0.74992]
[1642045139999,1.0,3333.8,3333.4,0.00227369]
[1642045140599,0.6,3333.9,3333.4,0.00227369]
[1642045141002,0.3,3333.9,3333.4,0.00227369]
[1642045141240,0.30113685,3334.0,3333.4,0.00227369]
[1642045143649,0.30113685,3334.0,3333.2,0.00341054]
[1642045144650,21.40422066,3334.0,3333.2,0.00341054]
[1642045145094,1.0,3333.9,3333.2,0.00341054]
[1642045146297,1.56146362,3333.8,3333.2,0.99426853]
[1642045146496,2.16146362,3333.8,3333.2,0.99426853]
[1642045146697,2.16146362,3333.8,3333.3,0.00284212]
[1642045146896,2.16146362,3333.8,3333.3,0.75276212]
[1642045147396,2.16146362,3333.8,3333.4,0.00227369]
[1642045148203,1.56146362,3333.7,3333.4,0.99313168]
[1642045148606,1.86146362,3333.7,3333.5,0.00170527]
[1642045149446,1.56146362,3333.6,3333.5,0.00170527]
[1642045149851,1.86146362,3333.6,3333.5,0.00170527]
[1642045150948,1.86146362,3333.6,3333.5,0.99256326]
[1642045151156,2.68656362,3333.6,3333.5,0.99256326]
[1642045151354,3.23246362,3333.6,3333.5,0.99256326]
[1642045151553,4.23246362,3333.6,3333.5,0.99256326]
[1642045152503,4.23246362,3333.6,3333.5,0.00170527]
[1642045152900,4.23246362,3333.6,3333.3,0.00284212]
[1642045153100,1.1199,3333.5,3333.3,0.00284212]
[1642045153301,23.816,3333.4,3333.3,0.00284212]
[1642045153503,23.9359,3333.4,3333.3,0.00284212]
[1642045153705,19.0859,3333.4,3333.3,0.00284212]
[1642045153902,19.0859,3333.4,3333.2,0.00341054]
[1642045154102,7.28488564,3333.3,3333.2,0.00341054]
[1642045154303,7.71088564,3333.3,3333.2,0.00341054]
[1642045154502,5.46088564,3333.3,3333.2,0.00341054]
[1642045154703,1.726,3333.3,3333.2,0.00341054]
[1642045155104,0.726,3333.3,3333.2,0.00341054]
[1642045155302,4.31151094,3333.3,3333.2,0.99538759]
[1642045155504,5.87297456,3333.3,3333.2,0.99538759]
[1642045155703,3.28746362,3333.3,3333.2,0.99538759]
[1642045155905,6.8583552,3333.3,3333.2,0.99538759]
[1642045156355,3.28746362,3333.3,3333.2,0.99538759]
[1642045156752,6.86801873,3333.3,3333.2,0.99538759]
[1642045156954,3.28746362,3333.3,3333.2,0.99538759]
[1642045157553,3.28746362,3333.3,3333.2,0.00341054]
[1642045157956,3.28746362,3333.3,3332.7,0.00625266]
[1642045158156,1.3,3333.2,3332.7,0.99822971]
[1642045158555,1.3,3333.2,3332.8,0.00568423]
[1642045158959,1.56146362,3333.1,3332.8,0.99766128]
[1642045159357,1.86146362,3333.1,3332.9,0.00511581]
[1642045159758,1.86146362,3333.1,3332.9,0.99709286]
[1642045160197,1.86146362,3333.1,3333.0,0.00454739]
[1642045160599,0.3,3333.1,3333.0,0.99652444]
[1642045160800,19.14,3333.2,3333.0,0.99652444]
[1642045160999,1.6,3333.2,3333.0,0.99652444]
[1642045161198,0.6,3333.2,3333.1,0.00397896]
[1642045162399,0.6,3333.2,3333.1,0.99595601]
[1642045165847,0.6,3333.2,3333.1,1.21335601]
[1642045168095,1.6,3333.2,3333.1,1.21335601]
[1642045170599,19.14,3333.2,3333.1,1.21335601]
[1642045175993,20.79080512,3333.2,3333.1,1.21335601]
[1642045178500,21.66460512,3333.2,3333.1,1.21335601]
[1642045179149,21.66460512,3333.2,3333.1,0.22137896]
[1642045179351,23.91008742,3333.2,3333.1,0.22137896]
[1642045179754,0.75031,3332.9,3332.3,0.12]
[1642045179951,0.75031,3332.9,3332.2,3.1101]
[1642045179952,17.97716991,3332.8,3332.2,3.1101]
[1642045180151,18.686,3332.8,3332.4,0.00397897]
[1642045180551,18.686,3332.8,3332.0,0.00625266]
[1642045180552,17.54,3332.6,3332.0,0.00625266]
[1642045180754,17.54,3332.4,3332.0,0.00625266]
[1642045180951,17.54,3332.4,3331.9,0.00682109]
[1642045181152,1.0,3332.3,3331.9,0.00682109]
[1642045181551,0.63274074,3332.4,3331.9,0.00682109]
[1642045181751,0.6,3332.4,3331.9,0.00682109]
[1642045182151,0.6,3332.4,3332.0,0.78427653]
[1642045182607,0.3,3332.4,3332.3,1.21600191]
[1642045183009,1.42,3333.2,3332.3,1.2205493]
[1642045183207,1.66119855,3333.5,3332.4,0.12]
[1642045183404,1.54119855,3333.5,3332.4,0.12]
[1642045183606,0.00170527,3333.4,3332.5,0.00341055]
[1642045183806,0.00170527,3333.4,3332.9,1.15494694]
[1642045184007,0.00113684,3333.3,3332.9,1.11240787]
[1642045184207,0.00113684,3333.3,3332.9,1.23240787]
[1642045184409,0.00113684,3333.3,3332.9,0.12]
[1642045184808,0.00113684,3333.3,3332.6,0.12]
[1642045185211,0.00113684,3333.3,3333.0,0.78427653]
[1642045186251,0.00113684,3333.3,3332.7,0.0022737]
[1642045186252,4.05890368,3333.3,3332.8,0.78427653]
[1642045186652,4.05890368,3333.3,3332.9,0.00113685]
[1642045187254,2.29076749,3333.3,3333.2,1.41052624]
[1642045187454,2.29076749,3333.3,3332.9,0.78541338]
[1642045187455,0.00113684,3333.3,3332.9,0.78541338]
[1642045188257,0.00113684,3333.3,3333.0,0.78427653]
[1642045188858,0.00113684,3333.3,3333.2,1.50235022]
[1642045189258,1.76927303,3333.3,3333.1,0.78427653]
[1642045189458,0.3,3333.2,3333.1,0.78427653]
[1642045190699,0.00113684,3333.3,3333.1,1.24792286]
[1642045191498,0.00113684,3333.3,3332.9,0.00113685]
[1642045193505,0.00113684,3333.3,3332.9,1.2432443]
[1642045193746,0.00113684,3333.3,3332.9,1.24210745]
[1642045194146,0.00113684,3333.3,3332.8,0.00170527]
[1642045194747,0.00113684,3333.3,3332.7,0.0022737]
[1642045194947,1.71927303,3333.4,3332.7,0.0022737]
[1642045195147,1.71927303,3333.4,3332.9,1.47317846]
[1642045195349,2.71927303,3333.4,3332.9,1.47317846]
[1642045195547,0.3,3333.5,3333.0,0.00170527]
[1642045195847,1.0,3333.3,3333.0,1.34142581]
[1642045196047,0.03666129,3333.4,3333.0,1.34142581]
[1642045196248,2.58963065,3333.5,3333.1,0.00113684]
[1642045196448,1.3,3333.4,3333.1,0.00113684]
[1642045196747,0.3,3333.4,3333.1,0.00113684]
[1642045196947,1.3,3333.5,3333.1,0.00113684]
[1642045197148,0.12,3333.4,3333.0,0.00170527]
[1642045197605,0.3,3333.5,3333.0,0.00170527]
[1642045197807,0.12,3333.4,3333.0,0.00170527]
[1642045198608,0.12,3333.4,3333.0,1.54287844]
[1642045199006,0.12,3333.4,3333.1,0.00113684]
[1642045200407,0.42170527,3333.6,3333.1,0.00113684]
[1642045200610,0.84770527,3333.6,3333.1,0.00113684]
[1642045200811,0.84770527,3333.6,3332.9,1.47317846]
[1642045200812,0.00113685,3333.5,3332.9,1.2743153]
[1642045201247,0.00170527,3333.4,3332.8,0.12]
[1642045201649,0.00113684,3333.3,3332.9,0.00113685]
[1642045201849,0.00113684,3333.3,3332.9,1.36749597]
[1642045202051,0.00170527,3333.4,3332.9,1.36749597]
[1642045202448,0.00113684,3333.3,3333.2,1.1853896]
[1642045202652,0.00113684,3333.3,3332.9,1.36749597]
[1642045203258,0.30113684,3333.3,3332.9,0.00113685]
[1642045203552,0.726,3333.2,3332.9,0.00113685]
[1642045204154,0.726,3333.2,3332.6,0.00284212]
[1642045204756,1.726,3333.2,3332.6,0.00284212]
[1642045206014,4.726,3333.2,3332.6,0.00284212]
[1642045208218,4.676,3333.2,3332.6,0.00284212]
[1642045211647,4.426,3333.2,3332.6,0.00284212]
[1642045212048,4.426,3333.2,3333.1,1.21478445]
[1642045212248,4.0,3333.2,3333.1,1.21478445]
[1642045212519,3.0,3333.2,3333.1,1.21478445]
[1642045212724,3.3,3333.2,3333.1,1.21478445]
[1642045215331,3.0,3333.2,3333.1,1.21478445]
[1642045215729,3.0,3333.2,3333.1,1.33478445]
[1642045216364,4.80600737,3333.2,3333.1,2.07905184]
[1642045217058,3.0,3333.2,3333.1,2.07905184]
[1642045220813,3.0,3333.2,3333.1,1.95905184]
[1642045221214,3.0,3333.2,3333.1,0.74426739]
[1642045221813,3.3,3333.2,3333.1,0.74426739]
[1642045222613,3.3,3333.2,3333.0,0.74426739]
[1642045222614,5.10559175,3333.2,3333.0,0.74426739]
[1642045223615,3.3,3333.2,3332.7,2.24426739]
[1642045224064,3.0,3333.2,3332.8,0.00170527]
[1642045224261,3.0,3333.2,3332.8,0.12170527]
[1642045224462,3.0,3333.2,3332.8,0.87167517]
[1642045224663,1.80549082,3333.1,3332.8,1.61594256]
[1642045225262,1.80549082,3333.1,3332.8,0.86597266]
[1642045225463,3.0,3333.2,3332.8,0.86597266]
[1642045225662,3.0,3333.2,3332.9,0.74426739]
[1642045226462,1.80591823,3333.1,3332.9,0.74426739]
[1642045228505,2.10591823,3333.1,3332.9,0.74426739]
[1642045229311,3.67589345,3333.0,3332.9,0.74426739]
[1642045229508,4.72162205,3333.0,3332.9,0.74426739]
[1642045229707,5.72162205,3333.0,3332.9,0.74426739]
[1642045230307,7.52754028,3333.0,3332.9,0.74426739]
[1642045230911,3.83931823,3333.0,3332.9,0.74426739]
[1642045231110,2.92591823,3333.0,3332.9,0.74426739]
[1642045231758,2.80591823,3333.0,3332.9,0.74426739]
[1642045232161,6.3601219,3333.0,3332.9,0.74426739]
[1642045232960,2.80591823,3333.0,3332.9,0.74426739]
[1642045234362,6.33760263,3333.0,3332.9,0.74426739]
[1642045234565,2.80591823,3333.0,3332.9,0.74426739]
[1642045235002,1.80591823,3333.0,3332.9,0.74426739]
[1642045236208,1.80591823,3333.1,3332.9,0.74426739]
[1642045236408,1.80591823,3333.1,3333.0,1.31269061]
[1642045236907,1.80591823,3333.1,3332.9,0.74426739]
[1642045237814,2.80591823,3333.1,3332.9,0.74426739]
[1642045238109,2.10591823,3333.1,3332.9,0.74426739]
[1642045238310,1.80591823,3333.1,3332.9,0.74426739]
[1642045238760,1.80591823,3333.0,3332.9,0.74426739]
[1642045239759,2.10591823,3333.1,3332.9,0.74426739]
[1642045240562,1.80591823,3333.0,3332.9,0.74426739]
[1642045256960,1.80591823,3333.0,3332.7,0.74426739]
[1642045257362,1.80591823,3333.0,3332.8,0.00170527]
[1642045258216,1.80591823,3333.0,3332.8,0.74597266]
[1642045258616,1.80591823,3333.0,3332.9,0.00113685]
[1642045259016,1.80591823,3333.0,3332.9,0.74540424]
[1642045271358,2.10591823,3333.0,3332.9,0.74540424]
[1642045272359,1.92591823,3333.0,3332.9,0.74540424]
[1642045273417,2.10591823,3333.0,3332.9,0.74540424]
[1642045273622,2.10591823,3333.0,3332.3,1.65882735]
[1642045273623,4.05,3332.9,3332.3,1.65882735]
[1642045273822,4.59118757,3332.8,3332.3,1.65882735]
[1642045274020,0.13368402,3332.7,3332.4,0.00284212]
[1642045274220,0.426,3332.6,3332.4,0.00284212]
[1642045274420,0.12,3332.5,3332.4,0.00284212]
[1642045275221,2.01729046,3332.5,3332.4,0.00284212]
[1642045275421,5.55300982,3332.5,3332.4,0.00284212]
[1642045275621,3.01729046,3332.5,3332.4,0.00284212]
[1642045275920,6.54084901,3332.5,3332.4,0.00284212]
[1642045277059,3.01729046,3332.5,3332.4,0.00284212]
[1642045277257,1.426,3332.5,3332.4,0.00284212]
[1642045277462,0.426,3332.5,3332.4,0.00284212]
[1642045277661,1.6707,3332.9,3332.4,0.00284212]
[1642045279063,1.9707,3332.9,3332.2,0.00397897]
[1642045279267,2.2707,3332.9,3332.3,0.12]
[1642045279466,0.12,3332.8,3332.2,0.00397897]
[1642045279765,3.42627677,3332.9,3332.2,0.00397897]
[1642045280006,2.42627677,3332.9,3332.2,0.75413627]
[1642045280205,1.0,3332.8,3332.2,0.75413627]
[1642045280408,1.0,3332.8,3332.3,0.00341054]
[1642045280607,2.2707,3332.9,3332.3,0.00341054]
[1642045282207,3.2707,3332.9,3332.3,0.00341054]
[1642045282406,2.2707,3332.9,3332.3,0.00341054]
[1642045283611,0.12,3332.8,3332.3,0.00341054]
[1642045283861,0.12,3332.8,3332.1,0.00454739]
[1642045284058,1.12,3332.8,3332.1,0.00454739]
[1642045284458,0.12,3332.8,3332.1,0.00454739]
[1642045284658,1.12,3332.8,3332.1,0.00454739]
[1642045284859,0.12,3332.8,3332.1,0.00454739]
[1642045285059,1.12,3332.8,3332.1,0.00454739]
[1642045285257,0.12,3332.8,3332.1,0.00454739]
[1642045285458,1.12,3332.8,3332.1,0.00454739]
[1642045285964,1.846,3332.8,3332.1,0.00454739]
[1642045286362,4.846,3332.8,3332.1,0.00454739]
[1642045286559,4.846,3332.8,3332.1,0.75474459]
[1642045286961,4.546,3332.8,3332.2,0.00397897]
[1642045287360,4.846,3332.8,3332.2,0.00397897]
[1642045289417,0.2958,3332.7,3332.2,0.00397897]
[1642045290118,0.2958,3332.7,3332.0,0.00511581]
[1642045290119,3.86805741,3332.6,3332.0,0.00511581]
[1642045290418,4.46805741,3332.6,3332.0,0.00511581]
[1642045290617,1.0,3332.5,3332.0,0.00511581]
[1642045290818,0.7504,3332.3,3332.0,0.00511581]
[1642045291017,0.72,3332.2,3332.0,0.00511581]
[1642045291463,3.526,3332.1,3332.0,0.00511581]
[1642045291668,4.526,3332.1,3332.0,0.00511581]
[1642045292463,1.426,3332.1,3332.0,0.00511581]
[1642045292667,0.426,3332.1,3332.0,0.00511581]
[1642045292867,0.7218,3332.1,3332.0,0.00511581]
[1642045294070,2.98585383,3332.1,3332.0,0.00511581]
[1642045294471,3.98585383,3332.1,3332.0,0.00511581]
[1642045295612,3.68585383,3332.1,3332.0,0.00511581]
[1642045296214,3.68585383,3332.1,3332.0,0.59070043]
[1642045296815,3.68585383,3332.1,3332.0,0.00511581]
[1642045297014,6.68585383,3332.1,3332.0,0.00511581]
[1642045297314,6.68585383,3332.1,3331.6,0.00738951]
[1642045297513,1.0,3332.0,3331.6,0.00738951]
[1642045297718,1.3,3332.0,3331.6,0.00738951]
[1642045297919,0.2958,3331.9,3331.7,0.5788162]
[1642045298318,0.2958,3331.9,3331.8,0.00625266]
[1642045299356,0.2958,3331.9,3331.8,0.58506886]
[1642045301561,0.2958,3331.9,3331.8,0.70506886]
[1642045301757,0.2958,3331.9,3331.8,0.58506886]
[1642045302158,0.2958,3332.0,3331.8,0.58506886]
[1642045302533,0.2958,3332.0,3331.9,0.12568424]
[1642045302937,0.2958,3332.0,3331.9,0.87587164]
[1642045303539,0.2958,3332.0,3331.9,1.45468784]
[1642045305137,0.2958,3332.0,3331.9,0.70450044]
[1642045306265,0.2958,3332.0,3331.9,0.58450044]
[1642045307262,0.2958,3332.0,3331.9,0.00568424]
[1642045308061,0.2958,3332.0,3331.9,0.53450044]
[1642045325414,1.4158,3332.0,3331.9,0.53450044]
[1642045326814,0.4158,3332.0,3331.9,0.53450044]
[1642045329264,1.4158,3332.0,3331.9,0.53450044]
[1642045329864,3.4164424,3332.0,3331.9,0.53450044]
[1642045330668,3.2964424,3332.0,3331.9,0.53450044]
[1642045332716,2.2964424,3332.0,3331.9,0.53450044]
[1642045332918,3.2964424,3332.0,3331.9,0.53450044]
[1642045336021,2.2964424,3332.0,3331.9,0.53450044]
[1642045340820,3.2964424,3332.0,3331.9,0.53450044]
[1642045343965,3.4164424,3332.0,3331.9,0.53450044]
[1642045345670,2.4164424,3332.0,3331.9,0.53450044]
[1642045346469,2.4164424,3332.0,3331.9,0.65450044]
[1642045347070,2.2964424,3332.0,3331.9,0.53450044]
[1642045347714,2.5964424,3332.0,3331.9,0.53450044]
[1642045347914,3.5964424,3332.0,3331.9,0.53450044]
[1642045348116,2.5964424,3332.0,3331.9,0.53450044]
[1642045354676,2.2964424,3332.0,3331.9,0.53450044]
[1642045355514,2.5964424,3332.0,3331.9,0.53450044]
[1642045362820,2.5964424,3332.0,3331.9,0.43450044]
[1642045364923,3.5964424,3332.0,3331.9,0.43450044]
[1642045365521,2.5964424,3332.0,3331.9,0.43450044]